fUST/lending_fUST_20250627
["ID","MTS","AMOUNT","RATE_DAILY","PERIOD"]
[368002677,1750990160656,-460.0,0.00019178,2]
[368002678,1750990160677,-460.0,0.00019178,2]
[368002679,1750990160697,-460.0,0.00019178,2]
[368002680,1750990160718,-466.24570629,0.00019178,2]
[368002681,1750990160739,-413.30466642,0.00019178,2]
[368002682,1750990160761,-460.0,0.00019178,2]
[368002683,1750990160782,-460.0,0.00019178,2]
[368002684,1750990160802,-460.0,0.00019178,2]
[368002685,1750990160822,-460.0,0.00019178,2]
[368002686,1750990160844,-460.0,0.00019178,2]
[368002687,1750990160864,-460.0,0.00019178,2]
[368002688,1750990160885,-465.7976254,0.00019178,2]
[368002689,1750990160905,-460.0,0.00019178,2]
[368002690,1750990160926,-206.91411131,0.00019178,2]
[368002691,1750990160946,-701.54,0.00019178,2]
[368002692,1750990160970,-460.0,0.00019178,2]
[368002693,1750990160989,-461.57248635,0.00019178,2]
[368002694,1750990161010,-460.0,0.00019178,2]
[368002695,1750990161029,-461.06265308,0.00019178,2]
[368002696,1750990161054,-460.0,0.00019178,2]
[368002697,1750990161074,-460.0,0.00019178,2]
[368002698,1750990161093,-460.0,0.00019178,2]
[368002699,1750990161113,-380.88661246,0.00019178,2]
[368002700,1750990161134,-460.0,0.00019178,2]
[368002701,1750990161154,-283.58747644,0.00019178,2]
[368002702,1750990161174,-155.16035245,0.00019178,2]
[368002703,1750990161193,-503.48574085,0.00019178,2]
[368002704,1750990161214,-460.0,0.00019178,2]
[368002705,1750990161235,-460.0,0.00019178,2]
[368002706,1750990161256,-460.0,0.00019178,2]
[368002707,1750990161278,-456.48383248,0.00019178,2]
[368002708,1750990161298,-460.79337867,0.00019178,2]
[368002709,1750990161318,-460.0,0.00019178,2]
[368002710,1750990161338,-416.60736158,0.00019178,2]
[368002711,1750990161359,-460.0,0.00019178,2]
[368002712,1750990161378,-477.97758391,0.00019178,2]
[368002713,1750990161398,-460.0,0.00019178,2]
[368002714,1750990161418,-460.0,0.00019178,2]
[368002715,1750990161437,-460.0,0.00019178,2]
[368002716,1750990161457,-464.37161255,0.00019178,2]
[368002717,1750990161478,-500.0,0.00019178,2]
[368002718,1750990161497,-460.0,0.00019178,2]
[368002719,1750990161517,-460.0,0.00019178,2]
[368002720,1750990161537,-460.0,0.00019178,2]
[368002721,1750990161558,-502.72158183,0.00019178,2]
[368002722,1750990161578,-460.0,0.00019178,2]
[368002723,1750990161598,-460.0,0.00019178,2]
[368002724,1750990161619,-460.0,0.00019178,2]
[368002725,1750990161638,-460.0,0.00019178,2]
[368002726,1750990161658,-460.0,0.00019178,2]
[368002727,1750990161678,-460.0,0.00019178,2]
[368002728,1750990161699,-184.57823862,0.00019178,2]
[368002729,1750990161719,-460.0,0.00019178,2]
[368002730,1750990161740,-598.63,0.00019178,2]
[368002731,1750990161761,-460.0,0.00019178,2]
[368002732,1750990161782,-440.0,0.00019178,2]
[368002733,1750990161802,-460.0,0.00019178,2]
[368002734,1750990161822,-481.50463939,0.00019178,2]
[368002735,1750990161842,-460.0,0.00019178,2]
[368002736,1750990161861,-460.0,0.00019178,2]
[368002737,1750990161882,-460.0,0.00019178,2]
[368002738,1750990161902,-460.0,0.00019178,2]
[368002739,1750990161924,-460.16875787,0.00019178,2]
[368002740,1750990161944,-460.0,0.00019178,2]
[368002741,1750990161965,-465.57250391,0.00019178,2]
[368002742,1750990161985,-463.37201637,0.00019178,2]
[368002743,1750990162005,-460.0,0.00019178,2]
[368002744,1750990162025,-468.10015399,0.00019178,2]
[368002745,1750990162046,-460.0,0.00019178,2]
[368002746,1750990162065,-461.61587846,0.00019178,2]
[368002747,1750990162084,-1003.48564809,0.00019178,2]
[368002748,1750990162104,-460.0,0.00019178,2]
[368002749,1750990162124,-462.48138794,0.00019178,2]
[368002750,1750990162146,-907.42,0.00019178,2]
[368002751,1750990162165,-460.9588393,0.00019178,2]
[368002752,1750990162186,-460.0,0.00019178,2]
[368002753,1750990162206,-460.0,0.00019178,2]
[368002754,1750990162227,-500.0,0.00019178,2]
[368002755,1750990162246,-500.0,0.00019178,2]
[368002756,1750990162265,-500.0,0.00019178,2]
[368002757,1750990162285,-542.81891461,0.00019178,2]
[368002758,1750990162306,-464.40065723,0.00019178,2]
[368002759,1750990162326,-460.0,0.00019178,2]
[368002760,1750990162348,-460.0,0.00019178,2]
[368002761,1750990162369,-787.53,0.00019178,2]
[368002762,1750990162390,-460.0,0.00019178,2]
[368002763,1750990162411,-460.0,0.00019178,2]
[368002764,1750990162430,-460.0,0.00019178,2]
[368002765,1750990162449,-444.57916917,0.00019178,2]
[368002766,1750990162470,-460.0,0.00019178,2]
[368002767,1750990162493,-150.85718572,0.00019178,2]
[368002768,1750990162517,-460.0,0.00019178,2]
[368002769,1750990162540,-460.0,0.00019178,2]
[368002770,1750990162562,-460.0,0.00019178,2]
[368002771,1750990162583,-587.87,0.00019178,2]
[368002772,1750990162604,-481.89417739,0.00019178,2]
[368002773,1750990162625,-460.0,0.00019178,2]
[368002774,1750990162645,-460.0,0.00019178,2]
[368002775,1750990162665,-524.96100606,0.00019178,2]
[368002776,1750990162686,-460.0,0.00019178,2]
[368002777,1750990162706,-460.0,0.00019178,2]
[368002778,1750990162725,-460.84997212,0.00019178,2]
[368002779,1750990162747,-460.0,0.00019178,2]
[368002780,1750990162768,-460.0,0.00019178,2]
[368002781,1750990162789,-460.73075696,0.00019178,2]
[368002782,1750990162809,-460.0,0.00019178,2]
[368002783,1750990162830,-460.96885862,0.00019178,2]
[368002784,1750990162852,-737.2,0.00019178,2]
[368002785,1750990162873,-460.0,0.00019178,2]
[368002786,1750990162895,-460.0,0.00019178,2]
[368002787,1750990162917,-460.0,0.00019178,2]
[368002788,1750990162940,-460.0,0.00019178,2]
[368002789,1750990162961,-550.53,0.00019178,2]
[368002790,1750990162983,-461.36962407,0.00019178,2]
[368002791,1750990163003,-460.0,0.00019178,2]
[368002792,1750990163025,-460.0,0.00019178,2]
[368002793,1750990163044,-465.37920716,0.00019178,2]
[368002794,1750990163066,-608.82,0.00019178,2]
[368002795,1750990163086,-460.0,0.00019178,2]
[368002796,1750990163106,-460.0,0.00019178,2]
[368002797,1750990163126,-404.96872708,0.00019178,2]
[368002798,1750990163146,-460.0,0.00019178,2]
[368002799,1750990163167,-460.0,0.00019178,2]
[368002800,1750990163186,-545.74726611,0.00019178,2]
[368002801,1750990163207,-460.0,0.00019178,2]
[368002802,1750990163228,-460.0,0.00019178,2]
[368002803,1750990163250,-461.35139025,0.00019178,2]
[368002804,1750990163273,-460.0,0.00019178,2]
[368002805,1750990163295,-460.0,0.00019178,2]
[368002806,1750990163528,-476.96,0.00019178,2]
[368002807,1750990163551,-460.64071201,0.00019178,2]
[368002808,1750990163574,-802.62,0.00019178,2]
[368002809,1750990163596,-460.0,0.00019178,2]
[368002810,1750990163617,-460.0,0.00019178,2]
[368002811,1750990163639,-460.0,0.00019178,2]
[368002812,1750990163659,-460.0,0.00019178,2]
[368002813,1750990163680,-460.8577971,0.00019178,2]
[368002814,1750990163702,-576.66144079,0.00019178,2]
[368002815,1750990163725,-648.92,0.00019178,2]
[368002816,1750990163748,-460.0,0.00019178,2]
[368002817,1750990163770,-460.0,0.00019178,2]
[368002818,1750990163791,-462.25897535,0.00019178,2]
[368002819,1750990163816,-460.0,0.00019178,2]
[368002820,1750990163840,-460.0,0.00019178,2]
[368002821,1750990163862,-460.0,0.00019178,2]
[368002822,1750990163883,-461.39732267,0.00019178,2]
[368002823,1750990163903,-460.0,0.00019178,2]
[368002824,1750990163923,-460.0,0.00019178,2]
[368002825,1750990164091,-460.0,0.00019178,2]
[368002826,1750990164112,-460.0,0.00019178,2]
[368002827,1750990164133,-460.0,0.00019178,2]
[368002828,1750990164154,-855.66,0.00019178,2]
[368002829,1750990164176,-460.0,0.00019178,2]
[368002830,1750990164198,-1854.28,0.00019178,2]
[368002831,1750990164219,-460.0,0.00019178,2]
[368002832,1750990164240,-535.16592175,0.00019178,2]
[368002833,1750990164261,-460.0,0.00019178,2]
[368002834,1750990164283,-169.0088313,0.00019178,2]
[368002835,1750990164991,-290.9911687,0.00019178,2]
[368002836,1750990165012,-159.8088313,0.00019178,2]
[368002837,1750990165179,-300.1911687,0.00019178,2]
[368002838,1750990165201,-462.23370307,0.00019178,2]
[368002839,1750990165225,-460.0,0.00019178,2]
[368002840,1750990165249,-442.04347894,0.00019178,2]
[368002841,1750990165272,-460.0,0.00019178,2]
[368002842,1750990165293,-461.13493883,0.00019178,2]
[368002843,1750990165317,-2374.25,0.00019178,2]
[368002844,1750990165338,-460.0,0.00019178,2]
[368002845,1750990165361,-460.0,0.00019178,2]
[368002846,1750990165383,-4.70528723,0.00019178,2]
[368002847,1750990168178,-455.29471277,0.00019178,2]
[368002848,1750990168198,-460.0,0.00019178,2]
[368002849,1750990168218,-460.0,0.00019178,2]
[368002850,1750990168238,-460.0,0.00019178,2]
[368002851,1750990168258,-460.0,0.00019178,2]
[368002852,1750990168278,-333.82788058,0.00019178,2]
[368002853,1750990168299,-931.11,0.00019178,2]
[368002854,1750990168321,-931.11,0.00019178,2]
[368002855,1750990168342,-460.0,0.00019178,2]
[368002856,1750990168363,-931.11,0.00019178,2]
[368002857,1750990168384,-931.11,0.00019178,2]
[368002858,1750990168406,-460.0,0.00019178,2]
[368002859,1750990168425,-504.38764687,0.00019178,2]
[368002860,1750990168446,-460.0,0.00019178,2]
[368002861,1750990168467,-460.0,0.00019178,2]
[368002862,1750990168487,-867.52,0.00019178,2]
[368002863,1750990168506,-460.0,0.00019178,2]
[368002864,1750990168527,-460.0,0.00019178,2]
[368002865,1750990168548,-460.0,0.00019178,2]
[368002866,1750990168569,-460.0,0.00019178,2]
[368002867,1750990168589,-460.60723194,0.00019178,2]
[368002868,1750990168611,-461.92110379,0.00019178,2]
[368002869,1750990168631,-504.82498089,0.00019178,2]
[368002870,1750990168652,-460.0,0.00019178,2]
[368002871,1750990168672,-460.0,0.00019178,2]
[368002872,1750990168694,-464.53336421,0.00019178,2]
[368002873,1750990168716,-500.0,0.00019178,2]
[368002874,1750990168738,-833.92,0.00019178,2]
[368002875,1750990168758,-460.49873536,0.00019178,2]
[368002876,1750990168779,-460.0,0.00019178,2]
[368002877,1750990168798,-460.0,0.00019178,2]
[368002878,1750990168819,-501.79113384,0.00019178,2]
[368002879,1750990168839,-468.86,0.00019178,2]
[368002880,1750990168858,-460.0,0.00019178,2]
[368002881,1750990168878,-461.09427538,0.00019178,2]
[368002882,1750990168901,-1937.95,0.00019178,2]
[368002883,1750990168921,-460.0,0.00019178,2]
[368002884,1750990168941,-460.0,0.00019178,2]
[368002885,1750990168965,-510.45,0.00019178,2]
[368002886,1750990168997,-4160.84,0.00019178,2]
[368002887,1750990169018,-666.48,0.00019178,2]
[368002888,1750990169038,-460.0,0.00019178,2]
[368002889,1750990169057,-460.0,0.00019178,2]
[368002890,1750990169078,-460.0,0.00019178,2]
[368002891,1750990169098,-460.0,0.00019178,2]
[368002892,1750990169117,-441.75538126,0.00019178,2]
[368002893,1750990169138,-585.93,0.00019178,2]
[368002894,1750990169158,-460.0,0.00019178,2]
[368002895,1750990169178,-460.0,0.00019178,2]
[368002896,1750990169198,-810.26,0.00019178,2]
[368002897,1750990169218,-460.0,0.00019178,2]
[368002898,1750990169237,-460.0,0.00019178,2]
[368002899,1750990169258,-664.72,0.00019178,2]
[368002900,1750990169277,-460.0,0.00019178,2]
[368002901,1750990169297,-709.05,0.00019178,2]
[368002902,1750990169319,-1068.07,0.00019178,2]
[368002903,1750990169339,-460.0,0.00019178,2]
[368002904,1750990169359,-460.0,0.00019178,2]
[368002905,1750990169379,-690.78,0.00019178,2]
[368002906,1750990169400,-460.0,0.00019178,2]
[368002907,1750990169582,-460.0,0.00019178,2]
[368002908,1750990169608,-469.33804227,0.00019178,2]
[368002909,1750990169635,-460.0,0.00019178,2]
[368002910,1750990169659,-460.0,0.00019178,2]
[368002911,1750990169680,-460.0,0.00019178,2]
[368002912,1750990169700,-460.0,0.00019178,2]
[368002913,1750990169723,-879.35,0.00019178,2]
[368002914,1750990169743,-215.56651482,0.00019178,2]
[368002915,1750990169763,-460.0,0.00019178,2]
[368002916,1750990169784,-665.58,0.00019178,2]
[368002917,1750990169806,-2063.54,0.00019178,2]
[368002918,1750990169826,-460.0,0.00019178,2]
[368002919,1750990169846,-478.81,0.00019178,2]
[368002920,1750990169870,-460.0,0.00019178,2]
[368002921,1750990169890,-460.0,0.00019178,2]
[368002922,1750990169910,-460.0,0.00019178,2]
[368002923,1750990169929,-461.09672593,0.00019178,2]
[368002924,1750990169951,-460.0,0.00019178,2]
[368002925,1750990169974,-709.13,0.00019178,2]
[368002926,1750990169993,-462.11840168,0.00019178,2]
[368002927,1750990170012,-460.0,0.00019178,2]
[368002928,1750990170032,-460.0,0.00019178,2]
[368002929,1750990170052,-460.0,0.00019178,2]
[368002930,1750990170072,-460.0,0.00019178,2]
[368002931,1750990170092,-460.0,0.00019178,2]
[368002932,1750990170111,-461.30002884,0.00019178,2]
[368002933,1750990170131,-460.0,0.00019178,2]
[368002934,1750990170151,-497.95,0.00019178,2]
[368002935,1750990170172,-2766.63,0.00019178,2]
[368002936,1750990170192,-460.0,0.00019178,2]
[368002937,1750990170211,-460.0,0.00019178,2]
[368002938,1750990170231,-460.0,0.00019178,2]
[368002939,1750990170249,-460.0,0.00019178,2]
[368002940,1750990170268,-460.0,0.00019178,2]
[368002941,1750990170287,-423.81120431,0.00019178,2]
[368002942,1750990170307,-461.435329,0.00019178,2]
[368002943,1750990170328,-668.1,0.00019178,2]
[368002944,1750990170347,-460.60258009,0.00019178,2]
[368002945,1750990170367,-460.0,0.00019178,2]
[368002946,1750990170387,-462.29250701,0.00019178,2]
[368002947,1750990170407,-462.68778904,0.00019178,2]
[368002948,1750990170427,-500.26,0.00019178,2]
[368002949,1750990170447,-467.55154595,0.00019178,2]
[368002950,1750990170468,-460.0,0.00019178,2]
[368002951,1750990170489,-463.65501871,0.00019178,2]
[368002952,1750990170508,-460.0,0.00019178,2]
[368002953,1750990170528,-462.31770727,0.00019178,2]
[368002954,1750990170548,-460.0,0.00019178,2]
[368002955,1750990170571,-460.0,0.00019178,2]
[368002956,1750990170590,-460.0,0.00019178,2]
[368002957,1750990170611,-1211.16,0.00019178,2]
[368002958,1750990170631,-624.51,0.00019178,2]
[368002959,1750990170652,-460.0,0.00019178,2]
[368002960,1750990170673,-382.9783854,0.00019178,2]
[368002961,1750990170692,-460.0,0.00019178,2]
[368002962,1750990170712,-460.0,0.00019178,2]
[368002963,1750990170732,-476.77056905,0.00019178,2]
[368002964,1750990170754,-460.0,0.00019178,2]
[368002965,1750990170774,-460.92140007,0.00019178,2]
[368002966,1750990170795,-460.0,0.00019178,2]
[368002967,1750990170816,-460.0,0.00019178,2]
[368002968,1750990170837,-460.0,0.00019178,2]
[368002969,1750990170857,-460.81927621,0.00019178,2]
[368002970,1750990170880,-1439.35,0.00019178,2]
[368002971,1750990170901,-1623.76,0.00019178,2]
[368002972,1750990170922,-460.0,0.00019178,2]
[368002973,1750990170942,-460.0,0.00019178,2]
[368002974,1750990170963,-460.0,0.00019178,2]
[368002975,1750990170988,-770.47,0.00019178,2]
[368002976,1750990171010,-460.0,0.00019178,2]
[368002977,1750990171030,-461.8703863,0.00019178,2]
[368002978,1750990171050,-460.98077953,0.00019178,2]
[368002979,1750990171070,-460.0,0.00019178,2]
[368002980,1750990171091,-460.0,0.00019178,2]
[368002981,1750990171111,-460.0,0.00019178,2]
[368002982,1750990171132,-460.0,0.00019178,2]
[368002983,1750990171153,-577.78,0.00019178,2]
[368002984,1750990171173,-466.52389615,0.00019178,2]
[368002985,1750990171194,-851.92,0.00019178,2]
[368002986,1750990171214,-460.0,0.00019178,2]
[368002987,1750990171235,-3159.43,0.00019178,2]
[368002988,1750990171255,-460.0,0.00019178,2]
[368002989,1750990171275,-571.76,0.00019178,2]
[368002990,1750990171296,-460.0,0.00019178,2]
[368002991,1750990171317,-816.91,0.00019178,2]
[368002992,1750990171337,-455.7281,0.00019178,2]
[368002993,1750990171357,-200.0,0.00019178,10]
[368002994,1750990171377,-200.0,0.00019178,10]
[368002995,1750990171396,-200.0,0.00019178,10]
[368002996,1750990171416,-221.492459,0.00019178,10]
[368002997,1750990171437,-460.0,0.00019178,2]
[368002998,1750990171458,-460.0,0.00019178,2]
[368002999,1750990171480,-460.0,0.00019178,2]
[368003000,1750990171500,-460.0,0.00019178,2]
[368003001,1750990171520,-460.0,0.00019178,2]
[368003002,1750990171541,-460.0,0.00019178,2]
[368003003,1750990171562,-460.0,0.00019178,2]
[368003004,1750990171583,-460.71157813,0.00019178,2]
[368003005,1750990171605,-464.9856378,0.00019178,2]
[368003006,1750990171625,-190.0,0.00019178,2]
[368003007,1750990171645,-460.0,0.00019178,2]
[368003008,1750990171666,-734.32070538,0.00019251,2]
[368003009,1750990171686,-207.4,0.00019318,2]
[368003010,1750990171706,-368.07710179,0.00019318,2]
[368003011,1750990171726,-67606.50576479,0.00019325,2]
[368003012,1750990171748,-500.0,0.00019328,2]
[368003013,1750990171768,-500.0,0.00019328,2]
[368003014,1750990171791,-500.0,0.00019328,2]
[368003015,1750990171815,-500.0,0.00019328,2]
[368003016,1750990171836,-500.0,0.00019328,2]
[368003017,1750990171857,-500.0,0.00019328,2]
[368003018,1750990171878,-500.0,0.00019328,2]
[368003019,1750990171899,-500.0,0.00019328,2]
[368003020,1750990171921,-500.0,0.00019328,2]
[368003021,1750990171943,-225.46992674,0.00019328,2]
[368003022,1750990171970,-500.0,0.00019328,2]
[368003023,1750990171992,-500.0,0.00019328,2]
[368003024,1750990172015,-500.0,0.00019328,2]
[368003025,1750990172038,-486.00140819,0.00019328,2]
[368003026,1750990172063,-450.0,0.00019328,2]
[368003027,1750990172085,-4419.47035714,0.00019335,2]
[368003045,1750990232474,-500.0,0.00019173,2]
[368003046,1750990232485,-199.856,0.00019173,2]
[368003047,1750990232522,-300.144,0.00019173,2]
[368003048,1750990232531,-300.0,0.00019177,2]
[368003049,1750990232541,-300.0,0.00019177,2]
[368003050,1750990232550,-1200.0,0.00019177,2]
[368003051,1750990232560,-300.0,0.00019177,2]
[368003052,1750990232570,-300.0,0.00019177,2]
[368003053,1750990232579,-300.0,0.00019177,2]
[368003055,1750990232589,-2249.21,0.00019178,2]
[368003057,1750990232599,-548.74086574,0.00019178,2]
[368003059,1750990232609,-460.0,0.00019178,2]
[368003061,1750990232618,-460.0,0.00019178,2]
[368003063,1750990232628,-396.73284911,0.00019178,2]
[368003089,1750990238463,-500.0,0.00019177,2]
[368003090,1750990238472,-500.0,0.00019177,2]
[368003091,1750990238482,-181.73973629,0.00019177,2]
[368003092,1750990238492,-338.23304938,0.00019177,2]
[368003093,1750990238501,-500.0,0.00019177,2]
[368003094,1750990238510,-500.0,0.00019177,2]
[368003095,1750990238520,-440.62122901,0.00019177,2]
[368003096,1750990238529,-500.0,0.00019177,2]
[368003097,1750990238538,-500.0,0.00019177,2]
[368003098,1750990238547,-500.0,0.00019177,2]
[368003099,1750990238558,-427.11247472,0.00019177,2]
[368003100,1750990238567,-500.0,0.00019177,2]
[368003101,1750990238577,-500.0,0.00019177,2]
[368003102,1750990238586,-198.02539977,0.00019177,2]
[368003103,1750990238596,-400.43069098,0.00019177,2]
[368003105,1750990238605,-63.26715089,0.00019178,2]
[368003106,1750990238615,-460.0,0.00019178,2]
[368003107,1750990238625,-318.22467001,0.00019178,2]
[368003108,1750990238635,-460.0,0.00019178,2]
[368003109,1750990238645,-460.0,0.00019178,2]
[368003110,1750990238654,-430.0,0.00019178,2]
[368003111,1750990238663,-527.59,0.00019178,2]
[368003112,1750990238673,-460.0,0.00019178,2]
[368003113,1750990238683,-414.89406444,0.00019178,2]
[368003114,1750990238692,-460.0,0.00019178,2]
[368003115,1750990238702,-402.31158342,0.00019178,2]
[368003116,1750990238712,-460.0,0.00019178,2]
[368003117,1750990238721,-609.62,0.00019178,2]
[368003118,1750990238731,-462.95774099,0.00019178,2]
[368003119,1750990238740,-1901.38,0.00019178,2]
[368003120,1750990238750,-460.0,0.00019178,2]
[368003121,1750990238759,-228.99502971,0.00019178,2]
[368003122,1750990238769,-505.97096708,0.00019178,2]
[368003123,1750990238779,-460.0,0.00019178,2]
[368003124,1750990238788,-460.0,0.00019178,2]
[368003125,1750990238797,-460.0,0.00019178,2]
[368003126,1750990238807,-431.59383985,0.00019178,2]
[368003127,1750990238817,-460.0,0.00019178,2]
[368003128,1750990238826,-460.0,0.00019178,2]
[368003129,1750990238835,-804.08,0.00019178,2]
[368003130,1750990238844,-460.0,0.00019178,2]
[368003131,1750990238853,-460.0,0.00019178,2]
[368003132,1750990238863,-460.0,0.00019178,2]
[368003133,1750990238874,-565.76699757,0.00019178,2]
[368003134,1750990238883,-460.0,0.00019178,2]
[368003135,1750990238892,-460.0,0.00019178,2]
[368003136,1750990238902,-460.0,0.00019178,2]
[368003137,1750990238911,-460.0,0.00019178,2]
[368003138,1750990238920,-2275.33,0.00019178,2]
[368003139,1750990238930,-460.0,0.00019178,2]
[368003140,1750990238940,-460.0,0.00019178,2]
[368003141,1750990238949,-460.0,0.00019178,2]
[368003142,1750990238958,-463.41536838,0.00019178,2]
[368003143,1750990238968,-2499.19,0.00019178,2]
[368003144,1750990238978,-460.0,0.00019178,2]
[368003145,1750990238992,-460.0,0.00019178,2]
[368003146,1750990239002,-460.0,0.00019178,2]
[368003147,1750990239011,-433.49070511,0.00019178,2]
[368003148,1750990239022,-410.0,0.00019178,2]
[368003149,1750990239034,-460.0,0.00019178,2]
[368003150,1750990239044,-988.74,0.00019178,2]
[368003151,1750990239054,-460.89159883,0.00019178,2]
[368003152,1750990239064,-402.02588828,0.00019178,2]
[368003153,1750990239073,-460.0,0.00019178,2]
[368003154,1750990239083,-460.0,0.00019178,2]
[368003155,1750990239092,-501.41690487,0.00019178,2]
[368003156,1750990239102,-460.0,0.00019178,2]
[368003157,1750990239112,-831.38,0.00019178,2]
[368003159,1750990239122,-480.0920643,0.00019178,2]
[368003160,1750990239132,-461.29566181,0.00019178,2]
[368003161,1750990239141,-460.74293357,0.00019178,2]
[368003162,1750990239151,-460.0,0.00019178,2]
[368003163,1750990239161,-460.72623371,0.00019178,2]
[368003164,1750990239171,-461.1840628,0.00019178,2]
[368003165,1750990239180,-460.0,0.00019178,2]
[368003166,1750990239190,-50000.0,0.00019178,2]
[368003167,1750990239199,-666.0,0.00019304,2]
[368003168,1750990239209,-207.4,0.00019304,2]
[368003169,1750990239219,-5000.0,0.00019304,2]
[368003170,1750990239228,-500.0,0.00019304,2]
[368003171,1750990239238,-500.0,0.00019304,2]
[368003172,1750990239247,-500.0,0.00019304,2]
[368003173,1750990239256,-500.0,0.00019304,2]
[368003174,1750990239266,-500.0,0.00019304,2]
[368003175,1750990239275,-500.0,0.00019304,2]
[368003176,1750990239283,-500.0,0.00019304,2]
[368003177,1750990239293,-500.0,0.00019304,2]
[368003178,1750990239305,-500.0,0.00019304,2]
[368003179,1750990239314,-500.0,0.00019304,2]
[368003180,1750990239324,-500.0,0.00019304,2]
[368003181,1750990239333,-500.0,0.00019304,2]
[368003182,1750990239343,-500.0,0.00019304,2]
[368003183,1750990239353,-500.0,0.00019304,2]
[368003184,1750990239363,-500.0,0.00019304,2]
[368003185,1750990239373,-500.0,0.00019304,2]
[368003186,1750990239383,-500.0,0.00019304,2]
[368003187,1750990239393,-500.0,0.00019304,2]
[368003188,1750990239403,-25000.0,0.00019304,2]
[368003189,1750990239413,-1113.89170438,0.00019335,2]
[368003190,1750990239423,-2380.42167119,0.00019335,2]
[368003191,1750990239433,-717.72141323,0.00019352,2]
[368003192,1750990239443,-500.0,0.00019432,2]
[368003193,1750990239453,-500.0,0.00019432,2]
[368003194,1750990239462,-500.0,0.00019434,2]
[368003195,1750990239472,-500.0,0.00019434,2]
[368003196,1750990239482,-500.0,0.00019434,2]
[368003197,1750990239492,-321.7490427,0.00019434,2]
[368003198,1750990239502,-931.11,0.00019434,2]
[368003199,1750990239511,-931.11,0.00019434,2]
[368003200,1750990239521,-431.66728058,0.00019435,2]
[368003201,1750990239531,-430.0,0.00019435,2]
[368003202,1750990239540,-465.97290628,0.00019435,2]
[368003203,1750990239550,-460.0,0.00019435,2]
[368003204,1750990239560,-460.0,0.00019435,2]
[368003205,1750990239569,-462.83512975,0.00019435,2]
[368003206,1750990239579,-388.33126219,0.00019435,2]
[368003207,1750990239589,-463.81931018,0.00019435,2]
[368003208,1750990239598,-464.933869,0.00019435,2]
[368003209,1750990239608,-460.7043289,0.00019435,2]
[368003210,1750990239617,-460.0,0.00019435,2]
[368003211,1750990239627,-347.86999656,0.00019435,2]
[368003212,1750990239636,-438.67313627,0.00019435,2]
[368003213,1750990239646,-462.83958345,0.00019435,2]
[368003214,1750990239657,-460.0,0.00019435,2]
[368003215,1750990239667,-464.88499847,0.00019435,2]
[368003216,1750990239677,-461.45673651,0.00019435,2]
[368003217,1750990239686,-398.08387412,0.00019435,2]
[368003218,1750990239697,-460.0,0.00019435,2]
[368003219,1750990239707,-462.14513878,0.00019435,2]
[368003220,1750990239717,-487.91,0.00019435,2]
[368003221,1750990239727,-465.81291526,0.00019435,2]
[368003222,1750990239737,-462.94592786,0.00019435,2]
[368003223,1750990239747,-384.32164377,0.00019435,2]
[368003224,1750990239757,-468.94765437,0.00019435,2]
[368003225,1750990239767,-460.0,0.00019435,2]